bitfinex/quotes_BTCUSD_20241226
["timestamp","ask_amount","ask_price","bid_price","bid_amount"]
[1735245404659,0.10415752,95624.0,95622.0,0.209156]
[1735245405004,0.10515752,95624.0,95622.0,0.209156]
[1735245405417,0.10515752,95624.0,95621.0,8.56e-05]
[1735245406349,0.10415752,95624.0,95621.0,8.56e-05]
[1735245406554,0.10515752,95624.0,95621.0,8.56e-05]
[1735245406759,0.10515752,95624.0,95622.0,0.209156]
[1735245407871,0.10415752,95624.0,95621.0,8.56e-05]
[1735245408231,0.10515752,95624.0,95621.0,8.56e-05]
[1735245408427,0.12341289,95624.0,95621.0,8.56e-05]
[1735245408635,0.00089861,95623.0,95621.0,8.56e-05]
[1735245409008,0.10398632,95622.0,95621.0,8.56e-05]
[1735245409204,0.10488493,95622.0,95621.0,8.56e-05]
[1735245410314,0.0001712,95624.0,95622.0,0.209156]
[1735245411585,0.0001712,95624.0,95623.0,0.0010457]
[1735245411979,0.0001712,95624.0,95622.0,0.2235553]
[1735245412578,0.0011712,95624.0,95622.0,0.2235553]
[1735245412774,0.0001712,95624.0,95623.0,0.002]
[1735245413000,0.10415752,95624.0,95623.0,0.002]
[1735245413167,0.10415752,95624.0,95622.0,0.212156]
[1735245413573,0.10415752,95624.0,95622.0,0.214156]
[1735245413952,0.10415752,95624.0,95622.0,0.211156]
[1735245414377,0.10415752,95624.0,95623.0,0.001]
[1735245415471,0.10415752,95624.0,95622.0,0.209156]
[1735245415890,0.10415752,95624.0,95623.0,0.001]
[1735245416113,0.0001712,95624.0,95623.0,0.001]
[1735245416314,0.0001712,95624.0,95622.0,0.210156]
[1735245416850,0.0001712,95624.0,95623.0,0.001]
[1735245417065,0.0001712,95624.0,95623.0,0.00104565]
[1735245417297,0.0001712,95624.0,95622.0,0.210156]
[1735245417498,0.0001712,95624.0,95622.0,0.211156]
[1735245418276,0.0001712,95624.0,95622.0,0.210156]
[1735245419112,0.0001712,95624.0,95623.0,0.005]
[1735245419266,0.0001712,95624.0,95622.0,0.211156]
[1735245419468,0.0001712,95624.0,95622.0,0.216156]
[1735245420273,0.0778,95623.0,95622.0,0.007]
[1735245420500,0.24843044,95623.0,95622.0,0.007]
[1735245420818,0.24753183,95623.0,95622.0,0.007]
[1735245421061,0.24753183,95623.0,95622.0,0.005]
[1735245421446,0.24753183,95623.0,95622.0,0.008]
[1735245421650,0.22928632,95623.0,95622.0,0.003]
[1735245421824,0.22928632,95623.0,95621.0,8.56e-05]
[1735245422006,0.10398632,95622.0,95621.0,8.56e-05]
[1735245424124,0.10398632,95622.0,95609.0,0.15]
[1735245424302,0.10398632,95622.0,95607.0,0.01393606]
[1735245424513,0.10398632,95622.0,95617.0,0.209167]
[1735245424909,0.10398632,95622.0,95621.0,8.56e-05]
[1735245425123,0.10398632,95622.0,95621.0,0.2092446]
[1735245426110,0.10398632,95622.0,95621.0,8.56e-05]
[1735245426918,0.1253,95623.0,95621.0,0.2092446]
[1735245427722,0.1253,95623.0,95617.0,0.209167]
[1735245427902,0.0001712,95624.0,95612.0,0.01410495]
[1735245428107,0.0001712,95624.0,95611.0,0.15]
[1735245428108,0.0001712,95624.0,95621.0,0.209159]
[1735245428349,0.0001712,95624.0,95621.0,0.210159]
[1735245428769,0.0001712,95624.0,95621.0,0.209159]
[1735245428997,0.10398632,95623.0,95617.0,0.001]
[1735245429180,0.00089861,95622.0,95617.0,0.001]
[1735245429386,0.10398632,95621.0,95618.0,0.209165]
[1735245431105,0.0001712,95624.0,95622.0,0.209156]
[1735245432396,0.0001712,95624.0,95622.0,0.211156]
[1735245432609,0.0001712,95624.0,95622.0,0.212156]
[1735245434606,0.0001712,95624.0,95622.0,0.003]
[1735245434607,0.10398632,95623.0,95622.0,0.003]
[1735245435081,0.10340517,95623.0,95622.0,0.003]
[1735245435481,0.17890517,95623.0,95622.0,0.003]
[1735245435677,0.17890517,95623.0,95613.0,0.209176]
[1735245435907,0.00089861,95622.0,95617.0,0.209166]
[1735245436093,0.10398632,95621.0,95617.0,0.209166]
[1735245436936,0.10398632,95621.0,95617.0,0.418333]
[1735245437150,0.10398632,95621.0,95617.0,0.209166]
[1735245437753,0.10398632,95621.0,95609.0,0.209185]
[1735245438591,0.10398632,95621.0,95602.0,0.023]
[1735245438731,0.003,95623.0,95622.0,0.382156]
[1735245438935,0.0001712,95624.0,95623.0,0.15]
[1735245439341,0.0001712,95624.0,95622.0,0.209156]
[1735245440161,0.0001712,95624.0,95623.0,0.002]
[1735245441382,0.159073,95624.0,95623.0,0.003]
[1735245441762,0.159073,95624.0,95622.0,0.001]
[1735245442019,0.10398632,95623.0,95622.0,0.001]
[1735245442168,0.10398632,95623.0,95616.0,0.209168]
[1735245442387,0.00089861,95622.0,95616.0,0.209168]
[1735245442583,0.13677995,95621.0,95616.0,0.209168]
[1735245442790,0.02056255,95619.0,95616.0,0.209168]
[1735245443601,0.02056255,95619.0,95612.0,0.209177]
[1735245443810,0.02056255,95619.0,95615.0,0.20917]
[1735245444578,0.10398632,95618.0,95614.0,0.209173]
[1735245444793,0.10398632,95618.0,95616.0,0.001]
[1735245444794,0.02214153,95617.0,95616.0,0.001]
[1735245444995,0.24802785,95617.0,95616.0,0.001]
[1735245445204,0.24712924,95617.0,95616.0,0.001]
[1735245445428,0.28467,95616.0,95615.0,0.001]
[1735245445628,0.209174,95614.0,95590.0,0.209224]
[1735245445834,0.26143851,95613.0,95589.0,0.209227]
[1735245446040,0.26143851,95613.0,95589.0,0.418455]
[1735245446877,0.26143851,95613.0,95589.0,0.209227]
[1735245447082,0.09184123,95610.0,95589.0,0.209228]
[1735245447260,0.27533865,95609.0,95589.0,0.209228]
[1735245447559,0.27533865,95609.0,95589.0,0.418456]
[1735245447999,0.27533865,95609.0,95589.0,0.419456]
[1735245448232,0.27533865,95609.0,95589.0,0.209228]
[1735245448452,0.09184123,95600.0,95581.0,8.56e-05]
[1735245448669,0.02072108,95594.0,95582.0,0.209244]
[1735245448881,0.10488493,95593.0,95582.0,0.209244]
[1735245449914,0.10499849,95593.0,95582.0,0.209244]
[1735245450348,0.00011356,95593.0,95590.0,0.209226]
[1735245450564,0.00011356,95593.0,95590.0,0.418452]
[1735245450995,0.00011356,95593.0,95592.0,0.209222]
[1735245451223,0.00011356,95593.0,95592.0,0.382222]
[1735245451864,0.00011356,95593.0,95592.0,0.359222]
[1735245452274,0.00011356,95593.0,95592.0,0.209222]
[1735245452523,0.11209988,95593.0,95592.0,0.002]
[1735245452729,0.18729988,95593.0,95592.0,0.001]
[1735245452910,0.20602987,95593.0,95592.0,0.001]
[1735245453119,0.20602987,95593.0,95592.0,0.004]
[1735245453312,0.19802987,95593.0,95588.0,0.209229]
[1735245453530,0.10398632,95592.0,95588.0,0.209229]
[1735245453824,0.10398632,95592.0,95589.0,0.209228]
[1735245454279,0.04222771,95600.0,95595.0,0.209214]
[1735245454421,0.10398632,95599.0,95595.0,0.209214]
[1735245454845,0.10398632,95599.0,95590.0,0.209226]
[1735245455038,0.00089861,95598.0,95590.0,0.209226]
[1735245455243,0.10398632,95597.0,95590.0,0.418452]
[1735245455798,0.10398632,95597.0,95590.0,0.209226]
[1735245457708,0.10498632,95597.0,95590.0,0.209226]
[1735245458373,0.10598632,95597.0,95594.0,0.209217]
[1735245459251,0.10598632,95597.0,95590.0,0.209226]
[1735245459693,0.10398632,95597.0,95590.0,0.209226]
[1735245460840,0.10498632,95597.0,95590.0,0.209226]
[1735245461202,0.10398632,95597.0,95590.0,0.209226]
[1735245461609,0.10498632,95597.0,95590.0,0.209226]
[1735245461810,0.10498632,95597.0,95592.0,8.56e-05]
[1735245462855,0.10398632,95597.0,95588.0,0.20923]
[1735245463061,0.01115265,95596.0,95588.0,0.20923]
[1735245463211,0.11513897,95596.0,95588.0,0.20923]
[1735245464214,0.11513897,95596.0,95582.0,0.209243]
[1735245464434,0.01788648,95595.0,95586.0,0.209234]
[1735245467167,0.0464,95593.0,95582.0,0.00011356]
[1735245467374,0.0805,95591.0,95582.0,0.00011356]
[1735245467575,0.10488493,95590.0,95582.0,0.00011356]
[1735245467799,0.0805,95588.0,95582.0,0.00011356]
[1735245468025,0.209237,95585.0,95582.0,0.00011356]
[1735245468233,0.289742,95583.0,95582.0,0.00011356]
[1735245468432,0.44012832,95583.0,95582.0,0.00011356]
[1735245471481,0.44312832,95583.0,95582.0,0.00011356]
[1735245471685,0.46458808,95583.0,95582.0,0.00011356]
[1735245471903,0.5666282,95583.0,95582.0,0.00011356]
[1735245472757,0.3573862,95583.0,95547.0,0.20932]
[1735245472969,0.0805,95569.0,95566.0,0.00022627]
[1735245473306,0.31415993,95568.0,95566.0,0.00022627]
[1735245473522,0.06039309,95567.0,95566.0,0.00022627]
[1735245473748,0.16527802,95567.0,95566.0,0.00022627]
[1735245474200,0.10488493,95567.0,95566.0,0.00022627]
[1735245474401,0.15128493,95567.0,95566.0,0.00022627]
[1735245474814,0.15628493,95567.0,95566.0,0.00022627]
[1735245475365,0.15728493,95567.0,95566.0,0.00022627]
[1735245476564,0.16128493,95567.0,95566.0,0.00022627]
[1735245476765,0.21866038,95567.0,95566.0,0.00022627]
[1735245477064,0.22276177,95567.0,95566.0,0.00022627]
[1735245477956,0.22176177,95567.0,95566.0,0.00022627]
[1735245478163,0.22276177,95567.0,95566.0,0.00022627]
[1735245478315,0.23991009,95567.0,95566.0,0.00022627]
[1735245479731,0.24391009,95567.0,95566.0,0.00022627]
[1735245480363,0.17653464,95567.0,95566.0,0.00022627]
[1735245480561,0.17743325,95567.0,95566.0,0.00022627]
[1735245485381,0.005,95567.0,95566.0,0.00022627]
[1735245485576,0.005,95567.0,95566.0,0.01290523]
[1735245485894,0.00089861,95586.0,95566.0,0.01290523]
[1735245486106,0.16145636,95585.0,95567.0,0.209277]
[1735245486326,0.16145636,95585.0,95570.0,0.209268]
[1735245486527,0.16145636,95585.0,95567.0,0.209277]
[1735245486938,0.16145636,95585.0,95571.0,0.209268]
[1735245487167,0.0001712,95570.0,95567.0,0.209277]
[1735245487527,0.0001712,95570.0,95567.0,0.418554]
[1735245487728,0.0001712,95570.0,95567.0,0.419554]
[1735245487938,0.0001712,95570.0,95567.0,0.418554]
[1735245489460,0.0011712,95570.0,95567.0,0.424554]
[1735245489998,0.0011712,95570.0,95567.0,0.420554]
[1735245489999,0.0001712,95570.0,95567.0,0.420554]
[1735245490221,0.0001712,95570.0,95567.0,0.424554]
[1735245490405,0.0001712,95570.0,95567.0,0.422554]
[1735245490609,0.0001712,95570.0,95567.0,0.420554]
[1735245491022,0.0001712,95570.0,95567.0,0.425554]
[1735245491226,0.0001712,95570.0,95567.0,0.418554]
[1735245491422,0.0001712,95570.0,95567.0,0.421554]
[1735245492642,0.0001712,95570.0,95567.0,0.423554]
[1735245492929,0.0001712,95570.0,95567.0,0.418554]
[1735245493068,0.0001712,95570.0,95567.0,0.421554]
[1735245493273,0.0001712,95570.0,95567.0,0.426554]
[1735245493488,0.0001712,95570.0,95567.0,0.418554]
[1735245493704,0.0001712,95570.0,95567.0,0.423554]
[1735245494078,0.0001712,95570.0,95567.0,0.418554]
[1735245494276,0.0001712,95570.0,95567.0,0.421554]
[1735245494473,0.0001712,95570.0,95567.0,0.43926524]
[1735245494676,0.0001712,95570.0,95567.0,0.02071124]
[1735245494880,0.23278632,95569.0,95567.0,0.008]
[1735245495095,0.04422205,95568.0,95567.0,0.008]
[1735245495326,0.14820837,95568.0,95567.0,0.008]
[1735245495733,0.14820837,95568.0,95566.0,0.00022627]
[1735245495894,0.10398632,95567.0,95566.0,0.00022627]
[1735245496705,0.10488493,95567.0,95566.0,0.00022627]
[1735245496911,0.15361905,95567.0,95566.0,0.00022627]
[1735245497110,0.10588493,95567.0,95566.0,0.00022627]
[1735245497333,0.10488493,95567.0,95566.0,0.00022627]
[1735245497515,0.0001712,95570.0,95566.0,0.00022627]
[1735245497745,0.001,95567.0,95566.0,0.00022627]
[1735245498987,0.0001712,95570.0,95566.0,0.00022627]
[1735245499225,0.001,95567.0,95566.0,0.00022627]
[1735245499428,0.10498632,95567.0,95566.0,0.00022627]
[1735245499621,0.10398632,95567.0,95566.0,0.00022627]
[1735245500162,0.0001712,95570.0,95566.0,0.00022627]
[1735245500415,0.0001712,95570.0,95566.0,0.00122627]
[1735245500617,0.0001712,95570.0,95566.0,0.00022627]
[1735245500862,0.0001712,95570.0,95566.0,0.00122627]
[1735245501069,0.0001712,95570.0,95566.0,0.00222627]
[1735245501251,0.01064498,95570.0,95566.0,0.00222627]
[1735245502256,0.01064498,95570.0,95566.0,0.00122627]
[1735245502676,0.0001712,95570.0,95567.0,0.418553]
[1735245502900,0.0001712,95570.0,95569.0,0.382272]
[1735245503945,0.0001712,95570.0,95569.0,0.464672]
[1735245504382,0.0091712,95570.0,95569.0,0.465672]
[1735245505492,0.0001712,95570.0,95569.0,0.464672]
[1735245505795,0.0091712,95570.0,95569.0,0.465672]
[1735245506342,0.0091712,95570.0,95569.0,0.470672]
[1735245506540,0.0001712,95570.0,95569.0,0.469672]
[1735245506766,0.0001712,95570.0,95569.0,0.464672]
[1735245506965,0.0011712,95570.0,95569.0,0.473672]
[1735245507121,0.0011712,95570.0,95569.0,0.478672]
[1735245507341,0.0011712,95570.0,95569.0,0.78265832]
[1735245507534,0.0001712,95595.0,95594.0,0.359218]
[1735245507741,0.0001712,95595.0,95594.0,0.464618]
[1735245507981,0.0001712,95595.0,95594.0,0.56860432]
[1735245508186,0.0001712,95595.0,95594.0,0.49560432]
[1735245508384,0.0001712,95595.0,95594.0,0.35938632]
[1735245508591,0.0001712,95621.0,95604.0,0.15]
[1735245508926,0.0001712,95621.0,95620.0,0.382161]
[1735245509943,0.00032644,95621.0,95620.0,0.382161]
[1735245510100,0.00132644,95621.0,95620.0,0.391161]
[1735245510302,0.00132644,95621.0,95620.0,0.368161]
[1735245510525,0.00132644,95621.0,95620.0,0.009]
[1735245510940,0.00132644,95621.0,95620.0,0.159]
[1735245511150,0.00132644,95621.0,95620.0,0.163]
[1735245511597,0.00032644,95621.0,95620.0,0.154]
[1735245511977,0.00032644,95621.0,95620.0,0.012]
[1735245512179,0.00032644,95621.0,95620.0,0.004]
[1735245512374,0.00032644,95621.0,95620.0,0.012]
[1735245512579,0.00032644,95621.0,95620.0,0.008]
[1735245512775,0.00032644,95621.0,95620.0,0.004]
[1735245513100,0.00132644,95621.0,95620.0,0.005]
[1735245513294,0.00132644,95621.0,95614.0,0.209173]
[1735245513695,0.00132644,95621.0,95620.0,0.005]
[1735245514088,0.00132644,95621.0,95620.0,0.003]
[1735245515268,0.00032644,95621.0,95614.0,0.22338247]
[1735245515682,0.00032644,95621.0,95618.0,0.209165]
[1735245515878,0.00032644,95621.0,95620.0,0.002]
[1735245516079,0.00032644,95621.0,95620.0,0.005]
[1735245516287,0.00032644,95621.0,95620.0,0.003]
[1735245516488,0.00032644,95621.0,95618.0,0.209165]
[1735245516689,0.00032644,95621.0,95614.0,0.01720947]
[1735245517133,0.00032644,95621.0,95614.0,0.01520947]
[1735245517349,0.02045087,95620.0,95614.0,0.01520947]
[1735245518556,0.02045087,95620.0,95615.0,0.209172]
[1735245518718,0.00132644,95621.0,95615.0,0.209172]
[1735245518918,0.00132644,95621.0,95608.0,0.209186]
[1735245518919,0.00132644,95621.0,95609.0,0.15]
[1735245519174,0.00032644,95621.0,95612.0,0.15]
[1735245519378,0.001,95620.0,95611.0,0.15]
[1735245519617,0.00032644,95621.0,95611.0,0.15]
[1735245519789,0.00032644,95621.0,95615.0,0.001]
[1735245520006,0.00032644,95621.0,95615.0,0.002]
[1735245520164,0.00032644,95621.0,95615.0,0.001]
[1735245520364,0.08162644,95621.0,95615.0,0.001]
[1735245521675,0.08162644,95621.0,95613.0,0.15]
[1735245521879,0.08162644,95621.0,95611.0,0.15]
[1735245522195,0.08162644,95621.0,95615.0,0.002]
[1735245522607,0.08162644,95621.0,95615.0,0.001]
[1735245522804,0.08162644,95621.0,95613.0,0.151]
[1735245523340,0.08162644,95621.0,95613.0,0.15]
[1735245523571,0.01027404,95620.0,95613.0,0.15]
[1735245523866,0.08162644,95621.0,95615.0,0.001]
[1735245524369,0.08162644,95621.0,95615.0,0.002]
[1735245525331,0.08162644,95621.0,95615.0,0.001]
[1735245525630,0.08162644,95621.0,95614.0,0.209173]
[1735245525835,0.08162644,95621.0,95612.0,0.209178]
[1735245526037,0.08162644,95621.0,95613.0,0.15]
[1735245526237,0.08262644,95621.0,95612.0,0.209178]
[1735245526553,0.08262644,95621.0,95613.0,0.15]
[1735245526554,0.08162644,95621.0,95613.0,0.15]
[1735245526954,0.08262644,95621.0,95613.0,0.15]
[1735245527160,0.08162644,95621.0,95613.0,0.15]
[1735245527526,0.08162644,95621.0,95614.0,0.209174]
[1735245528388,0.08262644,95621.0,95614.0,0.209174]
[1735245528767,0.08162644,95621.0,95614.0,0.209174]
[1735245529137,0.08262644,95621.0,95614.0,0.209174]
[1735245529287,0.08162644,95621.0,95614.0,0.209174]
[1735245529468,0.08262644,95621.0,95614.0,0.209174]
[1735245531751,0.08262644,95621.0,95613.0,0.15]
[1735245531999,0.12762644,95621.0,95613.0,0.15]
[1735245532400,0.01487404,95620.0,95613.0,0.15]
[1735245532732,0.12762644,95621.0,95614.0,0.209174]
[1735245533767,0.00132644,95621.0,95619.0,0.209162]
[1735245534775,0.00032644,95621.0,95619.0,0.209162]
[1735245535219,0.00032644,95621.0,95613.0,0.001]
[1735245535220,0.00132644,95621.0,95613.0,0.001]
[1735245535530,0.00032644,95621.0,95615.0,0.15]
[1735245535735,0.00032644,95621.0,95619.0,0.005]
[1735245536035,0.00032644,95621.0,95620.0,0.48719301]
[1735245536241,0.00032644,95621.0,95620.0,0.48614732]
[1735245536937,0.00032644,95621.0,95620.0,1.13244732]
[1735245537174,0.00032644,95621.0,95620.0,1.21364732]
[1735245537780,0.0001712,95625.0,95623.0,0.223]
[1735245537965,0.0001712,95628.0,95627.0,0.373]
[1735245537966,6e-07,95628.0,95627.0,0.373]
[1735245538178,0.02047967,95661.0,95633.0,0.309132]
[1735245538375,0.02047967,95661.0,95633.0,0.58611832]
[1735245538576,0.02047967,95661.0,95633.0,1.26182555]
[1735245538779,0.000171,95671.0,95633.0,1.23241832]
[1735245538994,0.000171,95671.0,95642.0,0.1]
[1735245539141,0.00051755,95650.0,95649.0,0.382097]
[1735245541337,0.00051755,95650.0,95645.0,0.15]
[1735245541544,0.00051755,95650.0,95649.0,0.001]
[1735245541762,0.00051755,95650.0,95643.0,0.20911]
[1735245542017,0.00051755,95650.0,95646.0,0.15]
[1735245542233,0.00051755,95650.0,95649.0,0.001]
[1735245542442,0.00051755,95650.0,95646.0,0.15]
[1735245542691,0.00051755,95650.0,95649.0,0.002]
[1735245542900,0.00051755,95650.0,95646.0,0.15]
[1735245543134,0.00051755,95650.0,95643.0,0.151]
[1735245543336,0.00051755,95650.0,95644.0,0.209108]
[1735245543505,0.00051755,95650.0,95645.0,0.15]
[1735245544828,0.00051755,95650.0,95649.0,0.001]
[1735245545353,0.16014563,95650.0,95634.0,0.01185219]
[1735245545600,0.209106,95645.0,95619.0,0.209163]
[1735245545858,0.10488493,95644.0,95623.0,0.209153]
[1735245546102,0.03913978,95643.0,95623.0,0.209153]
[1735245546382,0.10488493,95642.0,95623.0,0.209153]
[1735245546647,0.10488493,95642.0,95634.0,8.55e-05]
[1735245546878,0.30095823,95640.0,95634.0,8.55e-05]
[1735245547102,0.10488493,95639.0,95634.0,8.55e-05]
[1735245547314,0.209121,95638.0,95634.0,8.55e-05]
[1735245547519,0.17377274,95637.0,95634.0,8.55e-05]
[1735245547670,0.02098094,95635.0,95634.0,8.55e-05]
[1735245547824,0.12586587,95635.0,95634.0,8.55e-05]
[1735245549200,0.12586587,95635.0,95634.0,0.0010855]
[1735245549404,0.12586587,95635.0,95634.0,8.55e-05]
[1735245549604,0.19329626,95635.0,95634.0,8.55e-05]
[1735245551125,0.12586587,95635.0,95634.0,8.55e-05]
[1735245552671,0.12586587,95635.0,95634.0,0.0010855]
[1735245552895,0.12586587,95635.0,95634.0,8.55e-05]
[1735245555309,0.12586587,95635.0,95634.0,0.0010855]
[1735245555514,0.25336587,95635.0,95634.0,0.0010855]
[1735245555697,0.45054005,95635.0,95634.0,8.55e-05]
[1735245555910,0.209174,95614.0,95590.0,0.09348024]
[1735245556104,0.0792,95612.0,95594.0,0.01167464]
[1735245556307,0.10488493,95611.0,95594.0,0.01167464]
[1735245556880,0.10488493,95611.0,95593.0,0.209219]
[1735245557220,0.10488493,95611.0,95595.0,0.00124084]
[1735245557477,0.01840849,95610.0,95595.0,0.00124084]
[1735245557679,0.10488493,95609.0,95595.0,0.00124084]
[1735245558097,0.02127926,95606.0,95595.0,0.00124084]
[1735245558289,0.02127926,95606.0,95596.0,0.209213]
[1735245559920,0.02127926,95606.0,95595.0,0.00024084]
[1735245560069,0.02053642,95605.0,95595.0,0.00024084]
[1735245561059,0.02127926,95606.0,95595.0,0.00024084]
[1735245561823,0.0483,95605.0,95595.0,0.00024084]
[1735245562775,0.0483,95605.0,95595.0,0.00124084]
[1735245563002,0.0483,95605.0,95592.0,0.07824084]
[1735245563205,0.0483,95605.0,95591.0,0.22098035]
[1735245563412,0.07746642,95605.0,95591.0,0.22098035]
[1735245563758,0.0553,95605.0,95591.0,0.22098035]
[1735245564152,0.0483,95605.0,95591.0,0.22098035]
[1735245564758,0.0493,95605.0,95591.0,0.22098035]
[1735245565160,0.0483,95605.0,95591.0,0.22098035]
[1735245565449,0.0513,95605.0,95591.0,0.22098035]
[1735245565622,0.12263135,95604.0,95591.0,0.01175635]
[1735245566047,0.12173274,95604.0,95587.0,0.209232]
[1735245566248,0.12173274,95604.0,95591.0,0.209223]
[1735245566455,0.12173274,95604.0,95593.0,0.209218]
[1735245567256,0.10698632,95604.0,95593.0,0.209218]
[1735245568181,0.10698632,95604.0,95589.0,0.209227]
[1735245568801,0.10398632,95604.0,95589.0,0.209227]
[1735245569196,0.10598632,95604.0,95589.0,0.209227]
[1735245569766,0.10798632,95604.0,95589.0,0.209227]
[1735245569967,0.01775656,95603.0,95589.0,0.209227]
[1735245570417,0.0798,95602.0,95589.0,0.209227]
[1735245570588,0.0798,95602.0,95579.0,0.15]
[1735245570589,0.09184123,95600.0,95579.0,0.15]
[1735245570791,0.0798,95588.0,95576.0,0.00014077]
[1735245570969,0.0798,95586.0,95576.0,0.00014077]
[1735245571190,0.209247,95581.0,95576.0,0.00014077]
[1735245571396,0.0798,95579.0,95576.0,0.00014077]
[1735245571601,0.10488493,95578.0,95576.0,0.00014077]
[1735245572205,0.10488493,95578.0,95576.0,0.00114077]
[1735245573014,0.14427772,95578.0,95576.0,0.00014077]
[1735245573513,0.14927772,95578.0,95576.0,0.00014077]
[1735245574164,0.15127772,95578.0,95576.0,0.00014077]
[1735245576168,0.0211368,95577.0,95576.0,0.00014077]
[1735245576363,0.12602173,95577.0,95576.0,0.00014077]
[1735245576568,0.19309248,95577.0,95576.0,0.00014077]
[1735245576747,0.12602173,95577.0,95576.0,0.00014077]
[1735245577001,0.0211368,95577.0,95576.0,0.00014077]
[1735245577236,0.005,95578.0,95577.0,0.382255]
[1735245577649,0.005,95578.0,95577.0,0.928555]
[1735245577848,0.02049197,95605.0,95604.0,0.209196]
[1735245578465,0.02049197,95605.0,95602.0,0.209199]
[1735245578662,0.00089861,95621.0,95606.0,0.209191]
[1735245578872,0.10398632,95620.0,95606.0,0.209191]
[1735245579129,0.10488493,95620.0,95606.0,0.209191]
[1735245579492,0.02092391,95616.0,95606.0,0.209191]
[1735245580633,0.02092391,95616.0,95602.0,0.209199]
[1735245580964,0.02092391,95616.0,95602.0,0.22105456]
[1735245581190,0.04661479,95616.0,95602.0,0.22105456]
[1735245582695,0.02092391,95616.0,95602.0,0.22105456]
[1735245582909,0.02092391,95616.0,95603.0,0.209198]
[1735245583874,0.02192391,95616.0,95603.0,0.209198]
[1735245584193,0.02192391,95616.0,95589.0,0.15]
[1735245584386,0.09184123,95630.0,95565.0,0.0427]
[1735245584387,0.075871,95634.0,95601.0,0.173]
[1735245584599,0.075871,95634.0,95607.0,0.173]
[1735245584600,0.00015515,95620.0,95607.0,0.173]
[1735245584748,0.00015515,95620.0,95619.0,0.209163]
[1735245584962,0.00015515,95620.0,95619.0,0.382163]
[1735245585651,0.00015515,95620.0,95619.0,0.68614932]
[1735245586029,0.00015515,95620.0,95619.0,0.69114932]
[1735245586189,0.00015515,95620.0,95619.0,0.69797061]
[1735245586386,0.00015515,95620.0,95619.0,0.69897061]
[1735245586592,0.00715515,95620.0,95619.0,0.69897061]
[1735245587546,0.00815515,95620.0,95619.0,0.69997061]
[1735245587753,0.00115515,95620.0,95619.0,0.69897061]
[1735245588088,0.00115515,95620.0,95619.0,0.69997061]
[1735245588089,0.00815515,95620.0,95619.0,0.69997061]
[1735245588296,0.00115515,95620.0,95619.0,0.69897061]
[1735245588532,0.000171,95634.0,95633.0,0.232132]
[1735245588732,0.00068835,95634.0,95633.0,0.232132]
[1735245589334,0.00068835,95634.0,95633.0,0.48611832]
[1735245589735,0.00168835,95634.0,95633.0,0.49511832]
[1735245590133,0.00868835,95634.0,95633.0,0.49611832]
[1735245590740,0.00168835,95634.0,95633.0,0.49511832]
[1735245590946,0.00168835,95634.0,95633.0,0.49211832]
[1735245591361,0.01068835,95634.0,95633.0,0.49211832]
[1735245591712,0.00168835,95634.0,95633.0,0.49211832]
[1735245592020,0.00268835,95634.0,95633.0,0.49611832]
[1735245592651,0.00268835,95634.0,95633.0,0.50770337]
[1735245593833,0.00168835,95634.0,95633.0,0.50170337]
[1735245594035,0.00068835,95634.0,95633.0,1.04800337]
[1735245594229,0.00068835,95634.0,95633.0,1.05600337]
[1735245594455,0.00168835,95634.0,95633.0,1.05600337]
[1735245594802,0.00168835,95634.0,95633.0,1.04800337]
[1735245595008,0.00268835,95634.0,95633.0,1.05700337]
[1735245596031,0.00268835,95634.0,95633.0,1.05300337]
[1735245596245,0.00368835,95634.0,95633.0,1.05900337]
[1735245597035,0.00368835,95634.0,95633.0,0.51270337]
[1735245598887,0.00268835,95634.0,95633.0,0.50670337]
[1735245599292,0.00268835,95634.0,95633.0,0.51070337]
[1735245599742,0.00268835,95634.0,95633.0,0.50670337]
[1735245600150,0.00168835,95634.0,95633.0,0.50370337]
[1735245600351,0.00268835,95634.0,95633.0,0.51170337]
[1735245600755,0.00168835,95634.0,95633.0,0.50370337]
[1735245600977,0.00168835,95634.0,95633.0,0.22671705]
[1735245601516,0.00268835,95634.0,95633.0,0.23571705]
[1735245604800,0.00168835,95634.0,95633.0,0.22671705]
[1735245604986,0.00168835,95634.0,95633.0,0.01758505]
[1735245605188,0.00168835,95634.0,95633.0,0.01958505]
[1735245605672,0.00168835,95634.0,95633.0,0.013]
[1735245605800,0.44203337,95634.0,95633.0,0.013]
[1735245606009,0.209152,95625.0,95604.0,0.209195]
[1735245606217,0.22688493,95624.0,95604.0,0.209195]
[1735245606426,0.02099866,95609.0,95604.0,0.209195]
[1735245607230,0.0768,95608.0,95595.0,0.209213]
[1735245607455,0.0768,95608.0,95570.0,0.30111023]
[1735245607456,0.05587848,95607.0,95591.0,0.209224]
[1735245607660,0.10398632,95606.0,95596.0,0.209213]
[1735245607951,0.00089861,95605.0,95604.0,0.005]
[1735245608143,0.10398632,95605.0,95596.0,0.209213]
[1735245608360,0.10398632,95605.0,95585.0,0.209237]
[1735245608361,0.10398632,95605.0,95595.0,0.209215]
[1735245608565,0.0452,95607.0,95579.0,0.20925]
[1735245608566,0.0452,95607.0,95603.0,0.209197]
[1735245608811,0.0452,95607.0,95605.0,0.209194]
[1735245609141,0.0452517,95607.0,95605.0,0.209194]
[1735245610004,0.0462517,95607.0,95605.0,0.212194]
[1735245610175,0.0462517,95607.0,95605.0,0.209194]
[1735245610522,0.01230517,95606.0,95605.0,0.004]
[1735245610765,0.01230517,95606.0,95605.0,0.006]
[1735245610910,0.0452517,95607.0,95605.0,0.004]
[1735245611131,0.0462517,95607.0,95605.0,0.006]
[1735245611860,0.0462517,95607.0,95605.0,0.002]
[1735245612054,0.0462517,95607.0,95605.0,0.004]
[1735245612453,0.0452517,95607.0,95605.0,0.002]
[1735245612815,0.0452517,95607.0,95605.0,0.003]
[1735245613198,0.01310378,95606.0,95605.0,0.005]
[1735245613408,0.0452517,95607.0,95605.0,0.005]
[1735245613628,0.09184123,95630.0,95607.0,0.123]
[1735245613629,0.0754,95630.0,95607.0,0.123]
[1735245613860,0.1235,95645.0,95631.0,0.209136]
[1735245614064,0.00068832,95634.0,95631.0,0.209136]
[1735245614292,0.00068832,95634.0,95631.0,0.418272]
[1735245615097,0.00068832,95634.0,95633.0,0.209132]
[1735245616295,0.00068832,95634.0,95633.0,0.214132]
[1735245616704,0.00068832,95634.0,95633.0,0.209132]
[1735245617167,0.00168832,95634.0,95633.0,0.221132]